Cogmind - Beta 14 @@@ ROGUE MODE // 2024.08.26 @ 16:53:24 Player: Gilvian Result: Destroyed by as-87652 with Assembled Rifle Performance ------------- Evolutions (0) 0 Regions Visited (2) 400 Robots Destroyed (23) 115 Value Destroyed (427) 427 Prototype IDs (4) 80 Alien Tech Used (0) 0 Bonus (0) 0 TOTAL SCORE: 1022 Bonus ------- None Cogmind --------- Core Integrity 0/250 Matter 299/300 Energy 100/100 System Corruption 0% Temperature Cool (0) Movement Treading (400) Ox3 Location -10/Mines Parts ------- > --- POWER (1) -------- (None) > --- PROPULSION (2) --- Improved Treads > --- UTILITY (2) ------ Huge Storage Unit Signal Interpreter > --- WEAPON (2) ------- (None) > --- INVENTORY (25) --- Small Storage Unit Targeting Computer Medium Armor Plating Medium Armor Plating Peak State ------------ > --- POWER ------------ Light Nuclear Core > --- PROPULSION ------- Improved Treads Improved Treads > --- UTILITY ---------- Small Storage Unit Signal Interpreter > --- WEAPON ----------- Heavy Assault Rifle Heavy Assault Rifle > --- INVENTORY -------- Improved Treads Improved Treads Huge Storage Unit Targeting Computer Medium Armor Plating Medium Armor Plating Assault Rifle [Rating: 14] Favorites ----------- Power Light Ion Engine Engine Light Ion Engine Power Core Light Nuclear Core Propulsion Improved Treads Treads Improved Treads Utility Small Storage Unit Storage Small Storage Unit Processor Signal Interpreter Protection Medium Armor Plating Weapon Heavy Assault Rifle Ballistic Gun Heavy Assault Rifle Build | -11 -10 -10 ------- Run | Yrd Mat Min Slots Evolved . | . . . Power . | . . . Propulsion . | . . . Utility . | . . . Weapon . | . . . Parts Attached 20 | 5 9 6 Power 2 | 1 . 1 Engine 1 | 1 . . Core 1 | . . 1 Reactor . | . . . Propulsion 6 | 2 2 2 Treads 6 | 2 2 2 Leg . | . . . Wheel . | . . . Hover . | . . . Flight . | . . . Utility 7 | 1 5 1 Device . | . . . Storage 4 | 1 2 1 Processor 1 | . 1 . Hackware . | . . . Protection 2 | . 2 . Artifact . | . . . Weapon 5 | 1 2 2 Energy Gun . | . . . Energy Cannon . | . . . Ballistic Gun 5 | 1 2 2 Ballistic Cannon . | . . . Launcher . | . . . Special Weapon . | . . . Impact Weapon . | . . . Slashing Weapon . | . . . Piercing Weapon . | . . . Special Melee Weapon . | . . . Unidentified Prototypes . | . . . Parts Lost 9 | . . 9 Power 2 | . . 2 Propulsion 3 | . . 3 Utility . | . . . Weapon 4 | . . 4 Highest Loss Streak 6 | . . 6 To Critical Strikes . | . . . Average Slot Usage (%) 96 | . 99 86 Engine 11 | . 14 5 Treads 27 | . 28 27 Storage 14 | . 14 14 Processor 3 | . . 14 Protection 10 | . 13 . Ballistic Gun 26 | . 27 22 Peak Build Rating 14 | 5 13 14 Average Rating 10 | 3 11 10 On Entrance 5 | . 5 12 Naked Turns . | . . . Heaviest Build 81 | 10 21 81 Greatest Support 46 | 40 46 46 Greatest Overweight (x) 3 | . . 3 Average Overweight (x) . | . . . Largest Inventory Capacity 25 | 8 25 25 Average Capacity 8 | 6 8 11 Most Carried 8 | 4 8 8 Average Carried 5 | 1 5 6 Final Capacity 25 | 8 8 25 Final Carried 8 | 1 8 4 Class Distribution -------------------- 100% | Mutant Dominant Class ---------------- Mutant | -10/Materials Mutant | -10/Mines Resources | -11 -10 -10 ----------- Run | Yrd Mat Min Matter Collected 721 | 250 327 144 Remotely . | . . . Salvage Created 660 | . 421 239 Parts 49 | . 36 13 Haulers Intercepted 1 | . 1 . Recyclers Shooed . | . . . Parts Field Recycled . | . . . Retrieved Matter . | . . . Parts Self-Destructed . | . . . Prevented . | . . . Kills | -11 -10 -10 ------- Run | Yrd Mat Min Combat Hostiles Destroyed 22 | . 12 10 Guns 22 | . 12 10 Classes Destroyed 7 | . 5 2 Hauler 1 | . 1 . Recycler 1 | . 1 . Watcher 3 | . 3 . Swarmer 12 | . 9 3 Grunt 5 | . 3 2 Sentry 1 | . . 1 Assembled 4 | . . 4 Best Kill Streak 4 | . 4 3 Combat Bots Only 4 | . 4 3 Max Kills in Single Turn 2 | . 2 2 Gunslinging 1 | . 1 . Exploded . | . . . Melee . | . . . Uniques/NPCs Destroyed . | . . . Combat | -11 -10 -10 -------- Run | Yrd Mat Min Hostile Shots Fired 137 | . 62 75 Missed 40 | . 22 18 Damage Taken 1647 | . 374 1273 Core 258 | . 61 197 Absorbed by Shields . | . . . Core Remaining (%) 100 | 100 . . Volleys Fired 78 | . 42 36 Largest 2 | . 2 2 Hottest 46 | . 46 46 Shots Fired 138 | . 84 54 Gun 138 | . 84 54 Cannon . | . . . Launcher . | . . . Special . | . . . Kinetic 138 | . 84 54 Thermal . | . . . Explosive . | . . . Electromagnetic . | . . . Robot Hit Streak 13 | . 13 13 Robot Miss Streak 8 | . 8 4 Penetration Max . | . . . Secondary Targets 3 | . 2 1 Max Gunslinging Chain 1 | . 1 1 Shots Hit Robots 81 | . 44 37 Core Hits 36 | . 17 19 Critical Kills 1 | . 1 . Critical Parts Destroyed 1 | . . 1 Critical Strikes 2 | . 1 1 Destroy 2 | . 1 1 Melee Attacks . | . . . Impact . | . . . Slashing . | . . . Piercing . | . . . Sneak Attacks . | . . . Combat Hostiles . | . . . Follow-up Attacks . | . . . Damage Inflicted 1162 | . 627 535 Guns 1151 | . 619 532 Cannons . | . . . Explosions . | . . . Melee . | . . . Ramming 11 | . 8 3 Kinetic 1151 | . 619 532 Thermal . | . . . Explosive . | . . . Electromagnetic . | . . . Impact . | . . . Slashing . | . . . Piercing . | . . . Highest Corruption . | . . . Average Corruption . | . . . Corruption Purged . | . . . Corruption Blocked . | . . . Overload Shots . | . . . Overflow Damage . | . . . Projectiles . | . . . Explosions . | . . . Melee . | . . . Knockbacks . | . . . Impact . | . . . Kinetic . | . . . Secondary . | . . . Self-Inflicted Damage . | . . . Shots . | . . . Rammed 6 | . 2 4 Targets Rammed 8 | . 4 4 Kicked . | . . . Crushed 2 | . 2 . Highest Temperature 17 | . 7 17 Average Temperature 5 | . 3 7 Received Heat Transfer 196 | . 33 163 Siege Activations . | . . . Robots Corrupted . | . . . Combat Hostiles . | . . . Parts Fried . | . . . Impact Corruptions . | . . . Robots Melted . | . . . Combat Hostiles . | . . . Parts Melted . | . . . Heat Transferred . | . . . Parts Sabotaged . | . . . Parts Stolen . | . . . Parts Stripped . | . . . Power Chain Reactions . | . . . Alert | -11 -10 -10 ------- Run | Yrd Mat Min Peak Influence 200 | . 200 140 Initial . | . . . Average 64 | . 79 28 Maximum Alert Level 1 | . 1 . Low Security (%) 98 | 100 97 100 Level 1 1 | . 2 . Level 2 . | . . . Level 3 . | . . . Level 4 . | . . . Level 5 . | . . . High Security . | . . . Max Security . | . . . Squads Dispatched 1 | . 1 . Investigation 1 | . 1 . Extermination . | . . . Reinforcement . | . . . Assault . | . . . Garrison . | . . . Intercept . | . . . Searches Triggered . | . . . Construction Impeded . | . . . Haulers Reinforced . | . . . Active Scanning Responses . | . . . Cargo Convoy Interrupts . | . . . Stealth | -11 -10 -10 --------- Run | Yrd Mat Min Distress Signals 1 | . 1 . Communications Jammed . | . . . Distress Signals . | . . . Times Spotted 40 | . 19 21 Peak Tracking Total 8 | . 4 8 Tactical Retreats . | . . . Traps | -11 -10 -10 ------- Run | Yrd Mat Min Traps Triggered 2 | . 2 . Indirectly . | . . . Trap Hack Attempts . | . . . Triggered . | . . . Disarmed . | . . . Reprogrammed . | . . . Reused . | . . . Traps Extracted . | . . . Installed . | . . . Triggered . | . . . Machines | -11 -10 -10 ---------- Run | Yrd Mat Min Machines Disabled 1 | . 1 . Max in Single Turn 1 | . 1 . Machines Repaired . | . . . Machines Dismantled . | . . . Machines Sabotaged . | . . . Overloaded Fab Kills . | . . . Hacking | -11 -10 -10 --------- Run | Yrd Mat Min Machines Accessed 8 | . 8 . Terminals 7 | . 7 . Fabricators . | . . . Repair Stations . | . . . Recycling Units 1 | . 1 . Scanalyzers . | . . . Garrison Access . | . . . Total Hacks 24 | . 24 . Successful 18 | . 18 . Failed 6 | . 6 . Catastrophic 1 | . 1 . Database Lockouts . | . . . Manual . | . . . Terminals 22 | . 22 . Fabricators . | . . . Repair Stations . | . . . Recycling Units 2 | . 2 . Scanalyzers . | . . . Garrison Access . | . . . Terminal Hacks 16 | . 16 . Record 9 | . 9 . Prototype ID Bank 3 | . 3 . Terminal Index 1 | . 1 . Alert Level 1 | . 1 . Zone Layout 2 | . 2 . Fabricator Hacks . | . . . Repair Station Hacks . | . . . Recycling Unit Hacks 2 | . 2 . Report Inventory 1 | . 1 . Retrieve Matter 1 | . 1 . Scanalyzer . | . . . Garrison Access Hacks . | . . . Unauthorized Hacks . | . . . Terminals . | . . . Fabricators . | . . . Repair Stations . | . . . Recycling Units . | . . . Scanalyzers . | . . . Garrison Access . | . . . Data Cores Recovered . | . . . Used . | . . . Hacking Detections 5 | . 5 . Full Trace Events . | . . . Feedback Events . | . . . Feedback Blocked . | . . . Robot Schematics Acquired . | . . . Robots Built . | . . . Authchips . | . . . Time . | . . . Total Robot Build Rating . | . . . Part Schematics Acquired . | . . . Parts Built . | . . . Authchips . | . . . Time . | . . . Total Part Build Rating . | . . . Parts Repaired . | . . . Time . | . . . Parts Recycled . | . . . Recycled Matter . | . . . Retrieved Matter . | . . . Retrieved Components . | . . . Parts Scanalyzed . | . . . Part Schematics Acquired . | . . . Parts Damaged . | . . . Bothacking | -11 -10 -10 ------------ Run | Yrd Mat Min Used RIF Installer . | . . . Robots Hacked . | . . . Non-combat . | . . . Combat . | . . . Robot Hacks Applied . | . . . Relay Couplers Released . | . . . Fabnet Peak Effective % . | . . . Robots Rewired . | . . . Allies Hacked . | . . . Hacks Repelled . | . . . Allies | -11 -10 -10 -------- Run | Yrd Mat Min Total Allies . | . . . Largest Group . | . . . Highest-Rated Group . | . . . Highest-Rated Ally . | . . . Total Orders . | . . . Ally Attacks . | . . . Total Damage . | . . . Kills . | . . . Allies Corrupted . | . . . Allies Melted . | . . . Intel | -11 -10 -10 ------- Run | Yrd Mat Min Robot Analysis Total . | . . . Derelict Logs Recovered 2 | . . 2 Drone Launches . | . . . Drone Recoveries . | . . . Exploration | -11 -10 -10 ------------- Run | Yrd Mat Min Turns Passed 2206 | 68 1614 524 Spaces Moved 1170 | 43 892 235 Core 16 | 11 . 5 Treads 1154 | 32 892 230 Legs . | . . . Wheels . | . . . Hover . | . . . Flight . | . . . Fastest Speed 50 | 50 160 100 Average Speed 160 | 131 160 168 Slowest Speed 400 | 160 160 400 Overloaded Moves . | . . . Propulsion Burnouts . | . . . Robots Hopped . | . . . Cave-ins Triggered . | . . . Exploration Rate (%) 52 | 3 98 55 Regions Visited 2 Branch Regions 1 Pre-discovered Areas 1 | . . 1 Known Exits Taken 1 | . 1 . Unknown Exits Taken 1 | 1 . . Scrap Searched 1 | . . 1 Spaces Dug . | . . . Terrain Destroyed . | . . . Melee . | . . . Projectile . | . . . AOE . | . . . Terrain Rammed . | . . . Walls Destroyed . | . . . Machines Disabled . | . . . Actions | -11 -10 -10 --------- Run | Yrd Mat Min Total 1358 | 55 991 312 Wait 56 | . 30 26 Move 1168 | 42 891 235 Hop . | . . . Pick Up 22 | 7 12 3 Fast Attach . | . . . Attach 12 | 5 2 5 Detach . | . . . Swap 8 | . 7 1 Drop 6 | 1 3 2 Fire 78 | . 42 36 Melee . | . . . Ram . | . . . Kick . | . . . Crush 8 | . 4 4 Escape Stasis . | . . . Rewire . | . . . Trap . | . . . Miscellaneous . | . . . Route ------- -11/Scrapyard -10/Materials (discovered 4 exits: *Mat x3 / *Min) -10/Mines (discovered 2 exits: *Mat x2) History --------- Turn | Location | Event 3 | -11/Scrapyard | Discovered new exit (range 16) 69 | -11/Scrapyard | Entered Materials 110 | -10/Materials | Discovered new exit (range 6) 311 | -10/Materials | Discovered new exit (range 14) 314 | -10/Materials | Build established: Mutant 895 | -10/Materials | Discovered new exit (range 16) 1408 | -10/Materials | Discovered new exit (range 8) 1682 | -10/Materials | Identified exit to Mines 1683 | -10/Materials | Entered Mines 1810 | -10/Mines | Discovered new exit (range 15) 1832 | -10/Mines | Identified exit to Materials 1850 | -10/Mines | Discovered exit to Materials (range 4) 1856 | -10/Mines | Joined a pair of Derelicts in attacking an 0b10 outpost 2043 | -10/Mines | Assembled infested the area 2113 | -10/Mines | Core integrity fell below 50% 2128 | -10/Mines | Lost 6 parts (1p2n3w) 2187 | -10/Mines | Core integrity fell below 20% 2207 | -10/Mines | Destroyed by as-87652 with Assembled Rifle Last Messages --------------- Imp. Treads destroyed. Assault Rifle destroyed. U-05 Engineer builds a Wall. The unstable cave ceiling collapses. D-53 Grenadier destroyed. The unstable cave ceiling collapses. Acquired Lgt. Assault Rifle. Acquired 26 matter. The unstable cave ceiling collapses. Acquired 1 matter. The unstable cave ceiling collapses. Acquired 26 matter. Acquired 1 matter. as-65499 destroyed. Acquired 1 matter. The unstable cave ceiling collapses. Imp. Treads destroyed. The unstable cave ceiling collapses. as-07786 destroyed. Lgt. Assault Rifle destroyed. Map ----- +----------------------------------------------------+ | ?????????????????????????????????????????????????? | | ?????????????????????????????????????????????????? | | ?????????????????????????????????????????????????? | | ?????????????????????????????????????????????????? | | ?????????????????????????????????????????????????? | | ?????????????????????????????????????????????????? | | ?????????????????????????????????????????????????? | | ?????????????????????????????????????????????????? | | ?????????????????????????????????????????????????? | | ?????????????????????????????????????????????????? | | ?????????????????????????????????????????????????? | | ??????# ?????????????????????????????????????????? | | ?????## ?????????????########???????????????????? | | ?????? ???????###### ## ##??????????????????? | | ??????? #?????## # # ##??????????????????? | | ????????# #???### # ## # ##?????????????????? | | ?????????# #### ##?????????????????? | | ???????#### =###?????????????????? | | ? ????# # # #?????????????????? | | ? #??# # ## #?????????????????? | | ## ##### # ###???? # ????????? | | ? ??## ### #????????? | | ??# ## #?????????? | | ??#* ##### # #?????????? | | ### #### # ? #???? | | # k = % @ a% * # ????? | | ?# r= %*% ] # ##???? | | ???# ### ## ###### % #???? | | ???## ????# ## ###????# ## #?? | | ????#???????# ### ##?????# ### a #? | | ????????????# #?###?????# ###### # | | ????????????# #????????# ##????## | | ????????????# #???????# #???????###### | | ????????????# #???????# ??????????????? | | ????????????# #???????# ??????????????? # | | ????????????# #??????? ???????????????? ## | | ????????????# #??????????????????????????? | | ????????????# #??????????????????????????? | | ????????????# #???????????????????????????## ## | | ????????????# #?????????????????????????????# #?? | | ????????????# #??????????????????????????????????? | | ????????????# #??????????????????????????????????? | | ????????????# #??????????????????????????????????? | | ????????????# #??????????????????????????????????? | | ????????????# #??????????????????????????????????? | | ????????????#%#??????????????????????????????????? | | ????######### #??????????????????????????????????? | | ???##! ## ##?????????????????????????????????? | | ???#"|!|# ##????????????????????????????????? | | ???#[! %+% ###??????????????????????????????? | +----------------------------------------------------+ Best States ------------- Heat Dissipation 25 Energy Generation 14 Energy Capacity 160 Matter Stores 300 Matter Capacity 300 Sight Range 16 Terrain Scan Density 10 Armor Coverage 225 Evasion (%) 50 Recoil Reduction 2 Item Schematics ----------------- None Robot Schematics ------------------ None Fabricated ------------ Nothing Alien Tech Used ----------------- None Achievements -------------- None Challenges ------------ None Game ------ Seed VampiricCoilConstruct Manual? 0 Play Time 00:20:06 Cumulative 6.3 hours Start 2024.08.26 @ 16:31:53 End 2024.08.26 @ 16:53:24 Sessions 1 Manual Loads 0 Difficulty Rogue Special Mode None Game No. 19 Rogue 19 Adventurer 0 Explorer 0 Win Type - Total 0 Types 0/0/0/0/0/0/0/0/0 Lore% 2 Gallery% 10 Achievement% 12 Wizard Run 0 Options --------- Layout 1 ASCII 0 Keyboard 0 Movement Mouse Keybinds 0 Fullscreen 1 Font 24/Smallcaps Map View 50x35 Zoom Use 0% Tactical HUD 0 Map Filters NONE Filters NONE Steam 1 RUN: f3cbefc2-d2e2-42bf-8e99-c7b9ed4ec6cf